bitfinex/quotes_SOLUSD_20230101
["timestamp","ask_amount","ask_price","bid_price","bid_amount"]
[1672563174767,20.0,9.743,9.7378,24.1959]
[1672563174987,77.06,9.7429,9.7378,24.1959]
[1672563175209,20.0,9.7428,9.7378,24.1959]
[1672563175941,20.0,9.7442,9.7379,40.0]
[1672563176340,20.0,9.7442,9.7382,40.0]
[1672563176577,20.0,9.7442,9.7383,77.1]
[1672563176778,20.0,9.7442,9.7384,40.0]
[1672563178460,20.0,9.7442,9.7365,77.11]
[1672563178675,20.0,9.7442,9.7356,40.0]
[1672563178871,20.0,9.7442,9.7359,40.0]
[1672563180884,77.05,9.7441,9.7359,40.0]
[1672563181074,20.0,9.744,9.7359,40.0]
[1672563181288,77.06,9.7439,9.7359,40.0]
[1672563181491,20.0,9.7438,9.7359,40.0]
[1672563181714,77.06,9.7437,9.7359,40.0]
[1672563181927,20.0,9.7436,9.7359,40.0]
[1672563182248,77.06,9.7435,9.7359,40.0]
[1672563182441,20.0,9.7434,9.7359,40.0]
[1672563183075,20.0,9.7441,9.7359,40.0]
[1672563183290,77.05,9.744,9.7359,40.0]
[1672563183500,20.0,9.7439,9.7359,40.0]
[1672563183694,77.06,9.7438,9.7359,40.0]
[1672563183957,20.0,9.7437,9.7359,40.0]
[1672563184135,77.06,9.7436,9.7359,40.0]
[1672563184350,20.0,9.7435,9.7359,40.0]
[1672563184963,20.0,9.7441,9.7359,40.0]
[1672563185298,77.05,9.744,9.7359,40.0]
[1672563185491,20.0,9.7439,9.7359,40.0]
[1672563185699,77.06,9.7438,9.7359,40.0]
[1672563185918,20.0,9.7437,9.7359,40.0]
[1672563186222,77.06,9.7436,9.7359,40.0]
[1672563186432,20.0,9.7435,9.7359,40.0]
[1672563186657,77.06,9.7434,9.7359,40.0]
[1672563186855,20.0,9.7433,9.7359,40.0]
[1672563187087,77.06,9.7432,9.7359,40.0]
[1672563187352,20.0,9.7431,9.7359,40.0]
[1672563187487,77.06,9.743,9.7359,40.0]
[1672563187803,20.0,9.7429,9.7371,40.0]
[1672563188533,77.05,9.7442,9.7371,40.0]
[1672563188534,20.0,9.7441,9.7371,40.0]
[1672563188748,77.05,9.744,9.7371,40.0]
[1672563188947,20.0,9.7439,9.7371,40.0]
[1672563189168,77.06,9.7438,9.7371,40.0]
[1672563189355,77.06,9.7438,9.7359,40.0]
[1672563189356,20.0,9.7437,9.7359,40.0]
[1672563189573,77.06,9.7436,9.7359,40.0]
[1672563189781,20.0,9.7435,9.7359,40.0]
[1672563189991,77.06,9.7434,9.7359,40.0]
[1672563190212,20.0,9.7433,9.7359,40.0]
[1672563190417,77.06,9.7432,9.7359,40.0]
[1672563190617,20.0,9.7431,9.7359,40.0]
[1672563190834,77.06,9.743,9.7359,40.0]
[1672563191047,20.0,9.7429,9.7359,40.0]
[1672563191663,20.0,9.7441,9.7359,40.0]
[1672563191885,77.05,9.744,9.7359,40.0]
[1672563192102,20.0,9.7439,9.7359,40.0]
[1672563192310,77.06,9.7438,9.7359,40.0]
[1672563192523,20.0,9.7437,9.7359,40.0]
[1672563192731,77.06,9.7436,9.7359,40.0]
[1672563192949,20.0,9.7435,9.7359,40.0]
[1672563193153,77.06,9.7434,9.7359,40.0]
[1672563193468,20.0,9.7433,9.7359,40.0]
[1672563193659,77.06,9.7432,9.7359,40.0]
[1672563193867,77.06,9.7432,9.7354,40.0]
[1672563193868,20.0,9.7431,9.7344,40.0]
[1672563194084,117.06,9.743,9.7247,77.21]
[1672563194307,247.80255924,9.743,9.7248,40.0]
[1672563194624,40.0,9.7428,9.725,40.0]
[1672563194942,227.80255924,9.7427,9.7311,307.0]
[1672563195150,227.80255924,9.7427,9.7314,40.0]
[1672563195363,40.0,9.7425,9.7251,77.2]
[1672563195676,40.0,9.7425,9.7252,40.0]
[1672563195677,40.0,9.7423,9.7252,40.0]
[1672563195871,189.5048476,9.7424,9.7254,307.0]
[1672563195872,97.07,9.7422,9.7254,307.0]
[1672563196081,40.0,9.7421,9.7256,307.0]
[1672563196290,40.0,9.7419,9.7259,40.0]
[1672563196605,77.07,9.7418,9.7262,40.0]
[1672563196815,77.07,9.7421,9.7264,307.0]
[1672563197026,20.0,9.742,9.7266,307.0]
[1672563197236,77.07,9.7419,9.7269,40.0]
[1672563197452,77.07,9.7419,9.7271,307.0]
[1672563197778,77.07,9.7419,9.727,97.19]
[1672563197779,77.07,9.7419,9.7274,40.0]
[1672563197990,77.07,9.7419,9.7276,307.0]
[1672563198190,77.07,9.7419,9.7278,307.0]
[1672563198392,77.07,9.7419,9.7281,40.0]
[1672563198596,77.07,9.7419,9.7283,307.0]
[1672563198810,77.07,9.7419,9.7285,307.0]
[1672563199037,77.07,9.7419,9.7288,40.0]
[1672563199249,77.07,9.7419,9.729,307.0]
[1672563199457,77.07,9.7419,9.7293,40.0]
[1672563199778,77.07,9.7419,9.7296,40.0]
[1672563199988,77.07,9.7419,9.7298,307.0]
[1672563200177,77.07,9.7419,9.7301,40.0]
[1672563200392,77.07,9.7419,9.7303,307.0]
[1672563200604,77.07,9.7419,9.7305,307.0]
[1672563200815,77.07,9.7419,9.7307,307.0]
[1672563201023,77.07,9.7419,9.7309,307.0]
[1672563201234,40.0,9.7418,9.7309,307.0]
[1672563201445,40.0,9.7416,9.7309,307.0]
[1672563201661,77.07,9.7415,9.7309,307.0]
[1672563201972,77.07,9.7415,9.731,473.253]
[1672563202186,77.07,9.7418,9.731,473.253]
[1672563202389,77.07,9.7418,9.7311,166.253]
[1672563203036,77.07,9.7418,9.7313,307.0]
[1672563203227,77.07,9.7418,9.7314,46.7894]
[1672563203670,77.07,9.7418,9.7315,40.0]
[1672563203870,77.07,9.7418,9.7317,40.0]
[1672563204614,77.07,9.7418,9.732,40.0]
[1672563204815,77.07,9.7419,9.732,40.0]
[1672563205027,77.07,9.7419,9.7321,165.9618]
[1672563205783,40.0,9.7418,9.7322,165.9618]
[1672563205985,77.07,9.7417,9.7322,165.9618]
[1672563206188,40.0,9.7416,9.7322,165.9618]
[1672563206385,77.07,9.7415,9.7323,165.9618]
[1672563206591,40.0,9.7418,9.7324,165.9618]
[1672563206803,77.07,9.7417,9.7325,141.9904]
[1672563207859,40.0,9.7418,9.7326,24.1899]
[1672563208070,77.07,9.7417,9.7326,24.1899]
[1672563208492,40.0,9.7418,9.7327,23.693]
[1672563208707,77.07,9.7417,9.7327,23.693]
[1672563209231,77.07,9.7417,9.7328,23.693]
[1672563210003,77.07,9.7417,9.7329,23.693]
[1672563210169,40.0,9.7415,9.7329,23.693]
[1672563210378,77.08,9.7414,9.7329,23.693]
[1672563210594,20.0,9.7413,9.7329,23.693]
[1672563210807,20.0,9.7413,9.7188,172.34123705]
[1672563210808,76.26453687,9.7368,9.7249,307.0]
[1672563211128,137.11,9.7367,9.7254,48.0133]
[1672563211322,40.0,9.7365,9.7255,243.3829]
[1672563211539,97.11,9.7364,9.7256,307.0]
[1672563211745,40.0,9.7363,9.7256,307.0]
[1672563211956,40.0,9.7361,9.7257,23.7945]
[1672563212165,97.12,9.736,9.7257,23.7945]
[1672563212375,60.0,9.7359,9.7257,23.7945]
[1672563212586,40.0,9.7357,9.7258,23.7945]
[1672563212812,40.0,9.7355,9.7258,23.7945]
[1672563213027,97.12,9.7354,9.7258,23.7945]
[1672563213218,40.0,9.7353,9.7258,23.7945]
[1672563213428,97.12,9.7352,9.7259,23.7945]
[1672563213641,145.0198,9.7352,9.7259,23.7945]
[1672563213848,40.0,9.7351,9.7259,23.7945]
[1672563214066,97.13,9.735,9.7259,23.7945]
[1672563214272,100.3624,9.735,9.726,23.7945]
[1672563214478,20.0,9.7349,9.726,23.7945]
[1672563214690,77.13,9.7348,9.726,23.7945]
[1672563214902,20.0,9.7347,9.7261,24.8532]
[1672563215115,77.13,9.7346,9.7261,24.8532]
[1672563215325,20.0,9.7345,9.7261,24.8532]
[1672563215643,77.13,9.7344,9.7263,40.0]
[1672563215856,20.0,9.7343,9.7263,40.0]
[1672563216061,77.13,9.7342,9.7264,24.8532]
[1672563216473,20.0,9.7341,9.7264,24.8532]
[1672563216682,77.13,9.734,9.7265,24.8532]
[1672563216916,20.0,9.7339,9.7265,24.8532]
[1672563217144,77.14,9.7338,9.7265,24.8532]
[1672563217334,20.0,9.7337,9.7265,24.8532]
[1672563217558,77.14,9.7336,9.7265,24.8532]
[1672563217750,20.0,9.7335,9.7265,24.8532]
[1672563217949,77.14,9.7334,9.7265,24.8532]
[1672563218158,20.0,9.7333,9.7265,24.8532]
[1672563218794,20.0,9.7342,9.7265,24.8532]
[1672563219003,77.13,9.7341,9.7266,24.5994]
[1672563219221,20.0,9.734,9.7266,24.5994]
[1672563219427,77.13,9.7339,9.7266,24.5994]
[1672563219642,20.0,9.7338,9.7266,24.5994]
[1672563219836,77.14,9.7337,9.7266,24.5994]
[1672563220054,20.0,9.7336,9.7266,24.5994]
[1672563220265,77.14,9.7335,9.7266,24.5994]
[1672563220477,20.0,9.7334,9.7266,24.5994]
[1672563220688,77.14,9.7333,9.7266,24.5994]
[1672563220916,20.0,9.7332,9.7266,24.5994]
[1672563221433,20.0,9.7341,9.7266,24.5994]
[1672563222055,77.13,9.734,9.7266,24.5994]
[1672563222275,20.0,9.7339,9.7266,24.5994]
[1672563222471,77.14,9.7338,9.7266,24.5994]
[1672563222683,20.0,9.7337,9.7266,24.5994]
[1672563222892,77.14,9.7336,9.7266,24.5994]
[1672563223101,20.0,9.7337,9.7266,24.5994]
[1672563223323,40.0,9.7335,9.7266,24.5994]
[1672563223538,97.14,9.7334,9.7266,24.5994]
[1672563223747,40.0,9.7333,9.7266,24.5994]
[1672563223950,40.0,9.7331,9.7266,24.5994]
[1672563224162,97.14,9.733,9.7266,24.5994]
[1672563224380,40.0,9.7329,9.7266,24.5994]
[1672563224575,97.14,9.7328,9.7266,24.5994]
[1672563225526,40.0,9.7327,9.7266,24.5994]
[1672563225741,97.14,9.7326,9.7266,24.5994]
[1672563227945,40.0,9.7325,9.7266,24.5994]
[1672563228156,97.15,9.7324,9.7266,24.5994]
[1672563228573,40.0,9.7323,9.7266,24.5994]
[1672563228778,97.15,9.7322,9.7266,24.5994]
[1672563230475,20.0,9.7322,9.7266,24.5994]
[1672563230676,20.0,9.7339,9.7266,24.5994]
[1672563230887,77.14,9.7338,9.7266,24.5994]
[1672563231093,40.0,9.7336,9.7266,24.5994]
[1672563231325,97.14,9.7335,9.7266,24.5994]
[1672563231518,40.0,9.7334,9.7266,24.5994]
[1672563231731,97.14,9.7333,9.7266,24.5994]
[1672563248450,40.0,9.7332,9.7266,24.5994]
[1672563248658,40.0,9.733,9.7266,24.5994]
[1672563248864,97.14,9.7329,9.7266,24.5994]
[1672563249086,40.0,9.7328,9.7266,24.5994]
[1672563249293,97.14,9.7327,9.7266,24.5994]
[1672563249502,20.0,9.7326,9.7266,24.5994]
[1672563249713,77.15,9.7325,9.7266,24.5994]
[1672563249932,20.0,9.7324,9.7266,24.5994]
[1672563250139,77.15,9.7323,9.7266,24.5994]
[1672563250350,20.0,9.7322,9.7266,24.5994]
[1672563250569,77.15,9.7321,9.7266,24.5994]
[1672563250779,40.0,9.7319,9.7266,24.5994]
[1672563251092,77.15,9.7318,9.7266,24.5994]
[1672563251304,20.0,9.7322,9.7266,24.5994]
[1672563251305,77.15,9.7321,9.7266,24.5994]
[1672563251488,20.0,9.732,9.7266,24.5994]
[1672563251701,77.15,9.7319,9.7266,24.5994]
[1672563255385,20.0,9.732,9.7266,24.5994]
[1672563255586,20.0,9.7339,9.7266,24.5994]
[1672563255802,77.14,9.7338,9.7266,24.5994]
[1672563256012,20.0,9.7337,9.7266,24.5994]
[1672563256228,77.14,9.7336,9.7266,24.5994]
[1672563256444,20.0,9.7335,9.7266,24.5994]
[1672563256656,77.14,9.7334,9.7266,24.5994]
[1672563256868,20.0,9.7333,9.7266,24.5994]
[1672563257074,77.14,9.7332,9.7266,24.5994]
[1672563257283,20.0,9.7331,9.7266,24.5994]
[1672563257495,77.14,9.733,9.7266,24.5994]
[1672563257708,20.0,9.7329,9.7266,24.5994]
[1672563257910,77.14,9.7328,9.7266,24.5994]
[1672563258121,20.0,9.7327,9.7266,24.5994]
[1672563258328,77.14,9.7326,9.7266,24.5994]
[1672563258558,20.0,9.7325,9.7266,24.5994]
[1672563258769,77.15,9.7324,9.7266,24.49843253]
[1672563258974,20.0,9.7323,9.7266,24.49843253]
[1672563259193,77.15,9.7322,9.7266,24.49843253]
[1672563259501,20.0,9.7321,9.7266,24.49843253]
[1672563259727,77.15,9.732,9.7266,24.49843253]
[1672563260555,20.0,9.7321,9.7266,24.49843253]
[1672563260763,20.0,9.7339,9.7266,24.49843253]
[1672563260974,23.2188,9.7349,9.7266,24.49843253]
[1672563261193,0.0088,9.7349,9.7268,307.0]
[1672563261443,76.26453687,9.741,9.7271,40.0]
[1672563261600,76.26453687,9.741,9.7273,307.0]
[1672563261829,77.08,9.7409,9.7276,40.0]
[1672563262148,77.08,9.7409,9.7279,40.0]
[1672563262353,77.08,9.741,9.7281,307.0]
[1672563262570,77.08,9.741,9.7283,307.0]
[1672563262761,77.08,9.741,9.7285,307.0]
[1672563262976,77.08,9.741,9.7287,307.0]
[1672563263190,77.08,9.741,9.729,40.0]
[1672563263503,77.06,9.7428,9.7293,40.0]
[1672563263719,20.0,9.7427,9.7296,40.0]
[1672563264037,77.07,9.7426,9.7299,40.0]
[1672563264243,20.0,9.7425,9.7301,307.0]
[1672563264458,77.07,9.7424,9.7303,40.0]
[1672563264660,20.0,9.7423,9.7304,77.16]
[1672563264860,77.07,9.7422,9.7304,213.1523]
[1672563265069,20.0,9.7421,9.7305,40.0]
[1672563265280,77.07,9.742,9.7307,307.0]
[1672563265489,77.07,9.742,9.7309,307.0]
[1672563265717,77.07,9.742,9.7312,40.0]
[1672563265908,77.07,9.742,9.7314,307.0]
[1672563266138,77.07,9.742,9.7316,307.0]
[1672563266352,77.07,9.742,9.7318,307.0]
[1672563266543,77.07,9.742,9.732,307.0]
[1672563266752,20.0,9.7421,9.7323,40.0]
[1672563266954,76.26453687,9.7438,9.7323,40.0]
[1672563266955,77.07,9.742,9.7325,307.0]
[1672563267173,77.07,9.742,9.7324,77.15]
[1672563267174,77.06,9.7435,9.7327,347.0]
[1672563267385,20.0,9.7434,9.7329,307.0]
[1672563267613,77.06,9.7433,9.7331,307.0]
[1672563267805,20.0,9.7432,9.7333,307.0]
[1672563268017,77.06,9.7431,9.7335,307.0]
[1672563268231,20.0,9.743,9.7338,40.0]
[1672563268448,77.06,9.7429,9.734,307.0]
[1672563268656,20.0,9.7428,9.7342,347.0]
[1672563269074,20.0,9.7428,9.7343,40.0]
[1672563269606,20.0,9.7446,9.7343,40.0]
[1672563269803,77.05,9.7445,9.7345,40.0]
[1672563270010,20.0,9.7444,9.7345,40.0]
[1672563270344,77.05,9.7443,9.7345,40.0]
[1672563270540,20.0,9.7442,9.7348,40.0]
[1672563270874,77.05,9.7441,9.7348,40.0]
[1672563271185,77.05,9.7441,9.7351,40.0]
[1672563271377,20.0,9.744,9.7351,40.0]
[1672563271588,77.06,9.7439,9.7353,40.0]
[1672563271920,20.0,9.7438,9.7353,40.0]
[1672563272328,20.0,9.7451,9.7353,40.0]
[1672563272540,20.0,9.7451,9.7356,40.0]
[1672563272750,20.0,9.7452,9.7359,40.0]
[1672563272962,20.0,9.7452,9.7361,307.0]
[1672563273293,20.0,9.7452,9.7364,40.0]
[1672563273503,20.0,9.7454,9.7367,40.0]
[1672563273709,20.0,9.7454,9.737,40.0]
[1672563273921,20.0,9.7455,9.737,40.0]
[1672563276737,20.0,9.7455,9.7373,40.0]
[1672563276970,20.0,9.7455,9.7376,40.0]
[1672563277278,20.0,9.7455,9.7378,40.0]
[1672563279483,20.0,9.7455,9.7378,347.0]
[1672563280424,20.0,9.7455,9.7378,40.0]
[1672563282647,20.0,9.7455,9.7378,347.0]
[1672563285283,20.0,9.7455,9.7378,40.0]
[1672563286138,77.04,9.7454,9.7378,40.0]
[1672563286347,20.0,9.7453,9.7378,40.0]
[1672563286662,97.04,9.7455,9.7378,40.0]
[1672563288651,20.0,9.7455,9.7378,40.0]
[1672563290421,20.0,9.7455,9.7378,347.0]
[1672563290843,20.0,9.7455,9.738,347.0]
[1672563291068,20.0,9.7455,9.7383,40.0]
[1672563291283,20.0,9.7455,9.7386,40.0]
[1672563291893,77.04,9.7454,9.7386,40.0]
[1672563292104,20.0,9.7453,9.7386,40.0]
[1672563292320,20.0,9.7455,9.7386,40.0]
[1672563301996,76.26453687,9.7454,9.7386,40.0]
[1672563302208,20.0,9.7453,9.7386,40.0]
[1672563302634,76.26453687,9.7452,9.7386,40.0]
[1672563302849,20.0,9.7451,9.7386,40.0]
[1672563303269,96.26453687,9.7451,9.7386,40.0]
[1672563303884,76.26453687,9.7444,9.7386,40.0]
[1672563304110,20.0,9.7443,9.7386,40.0]
[1672563304520,96.26453687,9.7443,9.7386,40.0]
[1672563305908,76.26453687,9.7433,9.7386,40.0]
[1672563306221,20.0,9.7432,9.7386,40.0]
[1672563306409,96.26453687,9.7432,9.7386,40.0]
[1672563310634,20.0,9.7432,9.7389,40.0]
[1672563310831,20.0,9.7449,9.7389,40.0]
[1672563311039,20.0,9.7455,9.7392,40.0]
[1672563313664,20.0,9.7455,9.7387,77.1]
[1672563313665,76.26453687,9.7443,9.7387,77.1]
[1672563313881,20.0,9.7442,9.7386,40.0]
[1672563314505,96.26453687,9.7442,9.7386,40.0]
[1672563314710,20.0,9.7442,9.7386,40.0]
[1672563315560,96.26453687,9.7442,9.7386,40.0]
[1672563317244,76.26453687,9.7441,9.7386,40.0]
[1672563317450,20.0,9.744,9.7386,40.0]
[1672563318286,96.26453687,9.7441,9.7386,40.0]
[1672563320514,76.26453687,9.744,9.7386,40.0]
[1672563320739,20.0,9.7439,9.7386,40.0]
[1672563322422,20.0,9.744,9.7386,40.0]
[1672563322621,20.0,9.7441,9.7386,40.0]
[1672563323153,96.26453687,9.7441,9.7386,40.0]
[1672563323983,20.0,9.7441,9.7386,40.0]
[1672563324188,96.26453687,9.7441,9.7386,40.0]
[1672563325888,76.26453687,9.744,9.7386,40.0]
[1672563326205,76.26453687,9.7434,9.7386,40.0]
[1672563326403,20.0,9.7433,9.7386,40.0]
[1672563329795,96.26453687,9.7433,9.7386,40.0]
[1672563330303,20.0,9.7433,9.7386,40.0]
[1672563330703,96.26453687,9.7433,9.7386,40.0]
[1672563332180,20.0,9.7433,9.7386,40.0]
[1672563332630,96.26453687,9.7433,9.7386,40.0]
[1672563334208,20.0,9.7433,9.7386,40.0]
[1672563334612,96.26453687,9.7433,9.7386,40.0]
[1672563336091,20.0,9.7433,9.7386,40.0]
[1672563336628,96.26453687,9.7433,9.7386,40.0]
[1672563340196,20.0,9.7433,9.7386,40.0]
[1672563340510,96.26453687,9.7433,9.7386,40.0]
[1672563341875,20.0,9.7433,9.7386,40.0]
[1672563342489,96.26453687,9.7433,9.7386,40.0]
[1672563344097,20.0,9.7433,9.7386,40.0]
[1672563344619,96.26453687,9.7433,9.7386,40.0]
[1672563345461,20.0,9.7433,9.7386,40.0]
[1672563345679,96.26453687,9.7435,9.7386,40.0]
[1672563345876,20.0,9.7435,9.7386,40.0]
[1672563346074,96.26453687,9.7436,9.7386,40.0]
[1672563347017,76.26453687,9.7435,9.7386,40.0]
[1672563347226,20.0,9.7434,9.7386,40.0]
[1672563350279,96.26453687,9.7436,9.7386,40.0]
[1672563351221,76.26453687,9.7435,9.7386,40.0]
[1672563351452,20.0,9.7434,9.7386,40.0]
[1672563351958,96.26453687,9.7435,9.7386,40.0]
[1672563353432,20.0,9.7435,9.7386,40.0]
[1672563354926,96.26453687,9.7435,9.7386,40.0]
[1672563356073,20.0,9.7435,9.7386,40.0]
[1672563356284,96.26453687,9.7436,9.7378,40.0]
[1672563357017,76.26453687,9.7435,9.7378,40.0]
[1672563357241,20.0,9.7434,9.7378,40.0]
[1672563357562,76.26453687,9.742,9.7378,40.0]
[1672563362493,76.26453687,9.7419,9.735,40.0]
[1672563362706,76.26453687,9.7419,9.7353,40.0]
[1672563364386,76.26453687,9.7418,9.7323,40.0]
[1672563364591,77.07,9.7417,9.7325,307.0]
[1672563364811,77.07,9.7417,9.7327,307.0]
[1672563365123,77.07,9.7417,9.7329,307.0]
[1672563365349,77.07,9.7417,9.7331,307.0]
[1672563365523,77.07,9.7417,9.7333,347.0]
[1672563365868,77.07,9.7417,9.7335,307.0]
[1672563366054,77.07,9.7417,9.7337,307.0]
[1672563366266,76.26453687,9.7418,9.7339,307.0]
[1672563366475,77.07,9.7417,9.7339,307.0]
[1672563367336,77.07,9.7417,9.7336,307.0]
[1672563367556,77.07,9.7417,9.7336,331.491]
[1672563367764,77.07,9.7417,9.7338,307.0]
[1672563368283,77.07,9.7417,9.7338,331.491]
[1672563368702,77.07,9.7417,9.7339,307.0]
[1672563368915,76.26453687,9.7418,9.7339,307.0]
[1672563369650,76.26453687,9.7417,9.7339,307.0]
[1672563370281,76.26453687,9.7417,9.7339,384.13]
[1672563375546,76.26453687,9.7417,9.734,40.0]
[1672563375769,76.26453687,9.7417,9.7342,40.0]
[1672563379956,77.07,9.7416,9.7342,40.0]
[1672563382592,77.07,9.7416,9.7338,24.491]
[1672563382795,148.51582158,9.7416,9.7338,24.491]
[1672563384690,148.51582158,9.7416,9.7339,22.5695]
[1672563388997,148.51582158,9.7416,9.734,22.8486]
[1672563390581,148.51582158,9.7416,9.7341,22.8486]
[1672563391846,40.0,9.7415,9.7341,22.8486]
[1672563392054,77.07,9.7414,9.7341,22.8486]
[1672563392267,148.51582158,9.7414,9.7341,22.8486]
[1672563392590,40.0,9.7412,9.7341,22.8486]
[1672563392794,40.0,9.741,9.7342,23.4326]
[1672563392996,77.08,9.7409,9.7342,23.4326]
[1672563393208,148.52582158,9.7409,9.7342,23.4326]
[1672563393417,111.44582158,9.7408,9.7342,23.4326]
[1672563393629,77.08,9.7407,9.7342,23.4326]
[1672563393846,40.0,9.7406,9.7342,23.4326]
[1672563394160,40.0,9.7404,9.7342,23.4326]
[1672563394372,40.0,9.7402,9.7342,23.4326]
[1672563394581,77.09,9.7401,9.7342,23.4326]
[1672563394793,111.44582158,9.7401,9.7342,23.4326]
[1672563394988,77.09,9.74,9.7342,23.4326]
[1672563395407,40.0,9.7399,9.7342,23.4326]
[1672563395632,77.09,9.7398,9.7342,23.4326]
[1672563395845,148.53582158,9.7399,9.7342,23.4326]
[1672563397008,40.0,9.7398,9.7342,23.4326]
[1672563397195,77.09,9.7397,9.7342,23.4326]
[1672563397521,115.77915491,9.7397,9.7342,23.4326]
[1672563397743,152.86915491,9.7396,9.7342,23.4326]
[1672563398155,40.0,9.7394,9.7342,23.4326]
[1672563398367,77.09,9.7393,9.7342,23.4326]
[1672563398680,75.77915491,9.7393,9.7292,77.17]
[1672563398890,226.07497857,9.7392,9.7248,307.0]
[1672563399092,40.0,9.7391,9.725,307.0]
[1672563399312,40.0,9.7389,9.7253,40.0]
[1672563399504,40.0,9.7387,9.7256,40.0]
[1672563399716,97.1,9.7388,9.7256,40.0]
[1672563399717,97.1,9.7386,9.7258,307.0]
[1672563399935,20.0,9.7385,9.726,347.0]
[1672563400157,77.1,9.7384,9.7263,40.0]
[1672563400358,20.0,9.7383,9.7263,40.0]
[1672563400678,40.0,9.7381,9.7263,40.0]
[1672563400871,97.1,9.738,9.7263,40.0]
[1672563401202,314.83065491,9.738,9.7263,40.0]
[1672563401412,115.77915491,9.7379,9.7263,40.0]
[1672563401630,40.0,9.7377,9.7263,40.0]
[1672563401815,97.1,9.7376,9.7263,40.0]
[1672563402026,172.87915491,9.7376,9.7263,40.0]
[1672563402242,98.52455491,9.7375,9.7263,40.0]
[1672563402448,97.11,9.7374,9.7263,40.0]
[1672563402657,172.88915491,9.7374,9.7263,40.0]
[1672563402875,98.52455491,9.7373,9.7263,40.0]
[1672563403179,97.11,9.7372,9.7263,40.0]
[1672563403395,195.63455491,9.7372,9.7263,40.0]
[1672563403597,75.77915491,9.7371,9.7263,40.0]
[1672563403814,97.11,9.737,9.7263,40.0]
[1672563404023,119.9782,9.737,9.7263,40.0]
[1672563404252,75.77915491,9.7369,9.7263,40.0]
[1672563404468,97.11,9.7368,9.7263,40.0]
[1672563404769,119.9782,9.7368,9.7263,40.0]
[1672563405222,22.8682,9.7367,9.7263,40.0]
[1672563405535,97.11,9.7366,9.7263,40.0]
[1672563405844,119.9782,9.7366,9.7263,40.0]
[1672563406371,22.8682,9.7365,9.7263,40.0]
[1672563406566,97.11,9.7364,9.7263,40.0]
[1672563406774,97.11,9.7364,9.7258,40.0]
[1672563406987,23.1929,9.7363,9.7261,40.0]
[1672563407199,97.12,9.7362,9.7261,40.0]
[1672563407624,23.1929,9.7361,9.7261,40.0]
[1672563407827,97.12,9.736,9.7261,40.0]
[1672563408244,23.1929,9.7359,9.7261,40.0]
[1672563408469,97.12,9.7358,9.7261,40.0]
[1672563408878,120.3129,9.7358,9.7262,77.2]
[1672563409087,120.3129,9.7358,9.7263,40.0]
[1672563410560,76.26453687,9.7354,9.7263,40.0]
[1672563410771,97.12,9.7353,9.7263,40.0]
[1672563411001,20.0,9.7352,9.7263,40.0]
[1672563411191,77.12,9.7351,9.7263,40.0]
[1672563411398,20.0,9.735,9.7263,40.0]
[1672563411607,77.13,9.7349,9.7263,40.0]
[1672563411834,20.0,9.7348,9.7263,40.0]
[1672563412046,77.13,9.7347,9.7263,40.0]
[1672563412258,20.0,9.7346,9.7263,40.0]
[1672563412498,77.13,9.7345,9.7263,40.0]
[1672563412673,20.0,9.7344,9.7263,40.0]
[1672563412870,77.13,9.7343,9.7263,40.0]
[1672563413083,20.0,9.7342,9.7263,40.0]
[1672563413409,77.13,9.7341,9.7263,40.0]
[1672563413610,20.0,9.734,9.7263,40.0]
[1672563413820,77.13,9.7339,9.7263,40.0]
[1672563414030,20.0,9.7338,9.7263,40.0]
[1672563414452,20.0,9.7338,9.7263,347.0]
[1672563414656,20.0,9.735,9.7266,40.0]
[1672563414871,20.0,9.7351,9.7266,40.0]
[1672563415084,20.0,9.7351,9.7269,40.0]
[1672563415297,20.0,9.7351,9.7271,40.0]
[1672563416365,77.13,9.735,9.7271,40.0]
[1672563416568,20.0,9.7349,9.7271,40.0]
[1672563416884,77.13,9.7348,9.7271,40.0]